bitfinex-derivatives/quotes_ETHF0:USTF0_20250220
["timestamp","ask_amount","ask_price","bid_price","bid_amount"]
[1740016736234,4.1061,2719.7,2719.2,0.00551572]
[1740016736537,3.2078,2720.5,2719.6,3.2078]
[1740016736836,0.5803,2720.4,2719.9,3.2078]
[1740016737039,0.73528,2720.3,2719.9,3.2078]
[1740016737330,0.5803,2720.4,2719.9,3.2078]
[1740016737331,0.73533,2720.1,2719.9,3.2078]
[1740016738925,0.73535,2720.0,2719.9,3.2078]
[1740016739526,0.5803,2720.4,2719.9,3.2078]
[1740016739737,0.73535,2720.0,2719.9,3.2078]
[1740016739938,0.5803,2720.4,2719.9,3.2078]
[1740016740238,0.73534,2720.1,2719.9,3.2078]
[1740016740439,0.74079117,2720.2,2719.9,3.2078]
[1740016740737,0.73532,2720.1,2719.9,3.2078]
[1740016742136,0.74079117,2720.2,2719.9,3.2078]
[1740016742533,0.00548117,2720.2,2719.9,3.2078]
[1740016743543,0.00548117,2720.2,2720.0,2.373]
[1740016743741,0.00548117,2720.2,2720.1,0.5755]
[1740016743937,0.00548117,2720.2,2720.1,1.1388]
[1740016745038,0.74077117,2720.2,2720.1,1.1388]
[1740016755247,0.00548117,2720.2,2719.9,3.2078]
[1740016755546,0.73535,2720.0,2719.9,3.2078]
[1740016756142,1.6416,2720.1,2719.7,0.5645]
[1740016756344,0.7354,2719.8,2719.7,0.5645]
[1740016756544,0.7354,2719.8,2719.7,1.1041]
[1740016756752,0.73543,2719.7,2719.6,3.2078]
[1740016758542,0.73546,2719.6,2719.5,0.5586]
[1740016759046,1.6416,2720.1,2719.5,1.29407]
[1740016759250,1.6416,2720.1,2719.7,3.2078]
[1740016759450,0.73537,2720.0,2719.8,0.5545]
[1740016759650,0.73537,2720.0,2719.8,1.1202]
[1740016759854,0.73537,2720.0,2719.9,0.5333]
[1740016761546,1.0915,2720.1,2719.9,0.5333]
[1740016761746,0.73535,2720.0,2719.9,0.5333]
[1740016761955,1.0915,2720.1,2719.9,0.5333]
[1740016763553,0.00548117,2720.2,2720.0,3.2078]
[1740016763749,0.74078117,2720.2,2719.9,0.5333]
[1740016764055,0.73533,2720.1,2719.9,0.5333]
[1740016764755,0.5437,2720.0,2719.9,0.5333]
[1740016765658,1.27905,2720.0,2719.9,0.5333]
[1740016766251,0.5437,2720.0,2719.9,0.5333]
[1740016766758,1.27905,2720.0,2719.9,0.5333]
[1740016770454,1.27905,2720.0,2719.8,1.1202]
[1740016773056,0.5437,2720.0,2719.8,1.1202]
[1740016773261,0.73537,2719.9,2719.8,0.5545]
[1740016773457,0.7354,2719.8,2719.7,3.2078]
[1740016773656,0.73539,2719.9,2719.7,3.2078]
[1740016774062,0.7354,2719.8,2719.7,3.2078]
[1740016774254,0.73539,2719.9,2719.7,3.2078]
[1740016774454,0.5437,2720.0,2719.7,3.2078]
[1740016774760,0.73539,2719.9,2719.7,3.2078]
[1740016776459,0.5437,2720.0,2719.7,3.2078]
[1740016776661,0.7354,2719.8,2719.7,3.2078]
[1740016776850,0.73539,2719.9,2719.7,3.2078]
[1740016777052,1.27907,2720.0,2719.8,0.5764]
[1740016777266,0.73537,2719.9,2719.8,1.1544]
[1740016779764,1.27907,2720.0,2719.8,1.1544]
[1740016781365,0.5437,2720.0,2719.8,1.1544]
[1740016781565,0.00548117,2720.2,2719.9,0.5652]
[1740016781768,1.29092,2720.1,2719.9,0.5652]
[1740016781958,0.73535,2720.0,2719.9,0.5652]
[1740016786568,0.5556,2720.1,2719.9,0.5652]
[1740016786765,0.00548117,2720.2,2719.9,2.9372]
[1740016786970,0.00548117,2720.2,2720.0,0.73533]
[1740016787369,0.00548117,2720.2,2720.1,40.8]
[1740016787569,0.00548117,2720.2,2720.1,41.53532]
[1740016788174,0.5494,2720.7,2720.1,40.8]
[1740016788366,0.5494,2720.7,2720.4,3.2078]
[1740016788562,0.5494,2720.7,2720.5,1.1488]
[1740016789069,1.28456,2720.7,2720.5,1.1488]
[1740016790367,0.5494,2720.7,2720.5,1.1488]
[1740016790673,0.73519,2720.6,2720.5,0.5742]
[1740016790863,0.73519,2720.6,2720.4,3.2078]
[1740016791065,1.32159,2720.6,2720.4,3.2078]
[1740016791469,0.5494,2720.7,2720.4,3.2078]
[1740016792875,1.28456,2720.7,2720.4,3.2078]
[1740016793572,1.28456,2720.7,2720.4,3.49723688]
[1740016794677,1.28456,2720.7,2720.4,3.2078]
[1740016795674,0.5494,2720.7,2720.4,3.2078]
[1740016796980,1.28456,2720.7,2720.4,3.2078]
[1740016798582,0.73516,2720.7,2720.4,3.2078]
[1740016800877,0.5504,2720.8,2720.4,3.2078]
[1740016801182,1.28553,2720.8,2720.4,3.94302]
[1740016801882,0.5504,2720.8,2720.5,0.73519]
[1740016802087,0.5504,2720.8,2720.6,1.1271]
[1740016802476,0.5504,2720.8,2720.7,0.5649]
[1740016803174,3.2078,2721.5,2720.7,6.1437]
[1740016803379,0.5794,2721.2,2720.8,0.73511]
[1740016803581,0.5794,2721.2,2720.8,0.74062572]
[1740016803780,1.31442,2721.2,2720.8,0.00551572]
[1740016804381,0.5794,2721.2,2720.8,0.00551572]
[1740016804584,0.5794,2721.2,2720.8,0.74063572]
[1740016807080,0.5794,2721.2,2720.8,0.00551572]
[1740016807289,1.31443,2721.2,2720.8,0.00551572]
[1740016807884,1.31444,2721.2,2720.8,0.00551572]
[1740016808678,0.5794,2721.2,2720.8,0.00551572]
[1740016808885,1.0921,2721.4,2720.9,0.73509]
[1740016809082,1.6755,2721.4,2721.0,1.133]
[1740016809478,1.6755,2721.4,2721.1,0.5408]
[1740016810891,1.6755,2721.4,2721.1,3.64684]
[1740016811088,1.1393,2721.4,2721.2,0.73501]
[1740016811586,1.1393,2721.4,2721.1,3.64684]
[1740016811780,0.5559,2721.4,2721.2,40.8]
[1740016811982,0.5559,2721.4,2721.2,41.53502]
[1740016812183,3.2078,2723.1,2721.3,27.6898]
[1740016812387,0.5634,2722.9,2722.0,3.2078]
[1740016812689,3.2078,2722.7,2722.1,4.1594]
[1740016812895,3.2078,2722.7,2722.2,0.00551572]
[1740016813189,0.5831,2722.6,2722.2,0.00551572]
[1740016813683,0.5831,2722.6,2722.2,0.56271572]
[1740016813892,0.5831,2722.6,2722.2,1.29746572]
[1740016814192,0.5634,2722.9,2722.3,3.94253]
[1740016814390,0.5634,2722.9,2722.3,3.2078]
[1740016814596,0.5634,2722.9,2722.3,3.94251]
[1740016815799,0.5634,2722.9,2722.3,3.94252]
[1740016816196,0.5634,2722.9,2722.6,3.2078]
[1740016816395,0.5634,2722.9,2722.6,5.6678]
[1740016816892,0.5634,2722.9,2722.3,3.2078]
[1740016817098,0.73465,2722.6,2722.3,2.46]
[1740016817299,0.73465,2722.6,2722.2,0.00551572]
[1740016817300,1.30997,2722.5,2722.2,0.00551572]
[1740016817497,0.7347,2722.4,2722.2,0.00551572]
[1740016817696,0.5837,2722.3,2722.2,0.00551572]
[1740016818308,1.31843,2722.3,2722.2,0.00551572]
[1740016818496,0.5837,2722.3,2722.2,0.00551572]
[1740016819000,0.5753,2722.5,2722.2,0.00551572]
[1740016820295,0.73462,2722.7,2722.2,0.00551572]
[1740016820512,0.571,2722.6,2722.2,0.00551572]
[1740016821007,0.571,2722.6,2722.4,3.2078]
[1740016821504,0.571,2722.6,2722.4,5.6708]
[1740016823302,1.30566,2722.6,2722.4,5.6708]
[1740016823501,0.571,2722.6,2722.4,3.2078]
[1740016823702,1.30565,2722.6,2722.4,3.2078]
[1740016825111,0.571,2722.6,2722.4,3.2078]
[1740016825609,1.30566,2722.6,2722.4,3.2078]
[1740016826104,0.571,2722.6,2722.4,3.2078]
[1740016826506,1.30565,2722.6,2722.4,3.2078]
[1740016828108,3.7489,2722.8,2722.4,3.2078]
[1740016828312,0.5411,2722.8,2722.5,1.0911]
[1740016828608,0.73462,2722.7,2722.5,1.0911]
[1740016828809,0.73462,2722.7,2722.4,3.2078]
[1740016829313,0.5411,2722.8,2722.4,3.2078]
[1740016829509,1.2757,2722.8,2722.4,3.2078]
[1740016829810,0.73463,2722.7,2722.5,40.8]
[1740016830510,0.73463,2722.7,2722.4,3.2078]
[1740016830805,0.73463,2722.7,2722.4,44.0078]
[1740016832106,0.73465,2722.6,2722.4,44.0078]
[1740016832511,0.73465,2722.6,2722.4,40.8]
[1740016832714,0.73465,2722.6,2722.4,44.0078]
[1740016833315,0.73462,2722.7,2722.4,44.0078]
[1740016834311,0.73465,2722.6,2722.4,44.0078]
[1740016835811,0.73467,2722.5,2722.4,3.2078]
[1740016836005,0.5458,2722.5,2722.2,0.00551572]
[1740016836312,0.73473,2722.3,2722.2,43.25751572]
[1740016837617,0.73473,2722.3,2722.2,2.45751572]
[1740016838415,0.73473,2722.3,2722.2,0.00551572]
[1740016839410,1.27853,2722.3,2722.2,0.00551572]
[1740016848827,1.27853,2722.3,2722.2,5.72e-06]
[1740016849622,7.27853,2722.3,2722.2,5.72e-06]
[1740016850226,7.33758686,2722.3,2722.2,5.72e-06]
[1740016852619,7.33759011,2722.3,2722.2,5.72e-06]
[1740016855922,7.33758897,2722.3,2722.2,5.72e-06]
[1740016856122,7.33758891,2722.3,2722.2,5.72e-06]
[1740016856725,7.33758635,2722.3,2722.2,5.72e-06]
[1740016857718,7.33758569,2722.3,2722.2,5.72e-06]
[1740016860930,7.33758006,2722.3,2722.2,5.72e-06]
[1740016861230,7.33757964,2722.3,2722.2,5.72e-06]
[1740016862532,7.33759218,2722.3,2722.2,5.72e-06]
[1740016865629,0.73473,2722.3,2722.2,5.72e-06]
[1740016867227,1.88843,2722.3,2722.2,5.72e-06]
[1740016868234,1.29693,2722.3,2722.2,5.72e-06]
[1740016868935,3.72393,2722.3,2722.2,5.72e-06]
[1740016869230,3.16273,2722.3,2722.2,5.72e-06]
[1740016869535,3.2078,2722.4,2722.2,5.72e-06]
[1740016869733,0.73473,2722.3,2722.2,5.72e-06]
[1740016869922,3.2078,2722.4,2722.2,5.72e-06]
[1740016870123,3.05423,2722.4,2722.2,5.72e-06]
[1740016870336,0.73473,2722.3,2722.2,5.72e-06]
[1740016870528,3.05423,2722.4,2722.2,5.72e-06]
[1740016870734,0.73473,2722.3,2722.2,5.72e-06]
[1740016870934,3.05423,2722.4,2722.2,5.72e-06]
[1740016871131,0.73473,2722.3,2722.2,5.72e-06]
[1740016872039,0.72963,2722.3,2722.2,5.72e-06]
[1740016872233,0.7347,2722.4,2722.2,5.72e-06]
[1740016872438,0.7347,2722.4,2722.2,3.20780572]
[1740016872635,0.00551,2722.5,2722.2,5.63780572]
[1740016873241,0.74019,2722.5,2722.3,40.8]
[1740016873431,0.00551,2722.5,2722.4,0.8315]
[1740016875144,0.00551,2722.5,2722.4,1.5662]
[1740016875640,0.00551,2722.5,2722.4,6.8315]
[1740016877939,0.00551,2722.5,2722.4,0.8315]
[1740016878636,0.00551,2722.5,2722.4,1.5662]
[1740016878941,0.00551,2722.5,2722.4,0.8315]
[1740016879340,0.00551,2722.5,2722.4,7.5662]
[1740016879544,0.73455,2723.0,2722.5,0.73466]
[1740016879744,0.73455,2723.0,2722.6,2.423]
[1740016879943,0.7346,2722.8,2722.6,2.423]
[1740016880546,0.73462,2722.7,2722.6,2.423]
[1740016880845,3.2078,2723.1,2722.5,3.2078]
[1740016881037,0.73465,2722.6,2722.5,3.2078]
[1740016884844,3.2078,2723.1,2722.5,3.2078]
[1740016885142,0.73463,2722.7,2722.5,3.2078]
[1740016885535,3.2078,2723.1,2722.5,3.2078]
[1740016885740,0.73465,2722.6,2722.5,3.2078]
[1740016885944,0.73464,2722.7,2722.5,3.2078]
[1740016886543,0.5583,2723.0,2722.5,3.2078]
[1740016886544,0.73459,2722.9,2722.5,3.94247]
[1740016886745,0.5583,2723.0,2722.5,3.94247]
[1740016886746,0.5583,2723.0,2722.5,3.2078]
[1740016887040,3.2078,2723.4,2722.6,3.15463]
[1740016887245,0.73454,2723.0,2722.6,3.15463]
[1740016888144,0.73457,2722.9,2722.6,2.42]
[1740016888547,3.785,2723.4,2722.6,3.15463]
[1740016888744,0.73457,2722.9,2722.6,2.42]
[1740016888948,0.73456,2723.0,2722.6,3.15463]
[1740016889150,3.785,2723.4,2722.8,3.2078]
[1740016889451,0.73452,2723.1,2722.8,3.2078]
[1740016889652,0.73452,2723.1,2722.9,0.5886]
[1740016889853,3.785,2723.4,2722.8,3.2078]
[1740016890145,0.73456,2723.0,2722.8,3.2078]
[1740016890343,0.73456,2723.0,2722.8,3.49731815]
[1740016890546,0.73456,2723.0,2722.8,3.2078]
[1740016890945,0.73453,2723.1,2722.8,3.2078]
[1740016891141,0.73455,2723.0,2722.8,3.2078]
[1740016891343,3.785,2723.4,2722.8,3.2078]
[1740016891543,0.73455,2723.0,2722.8,3.2078]
[1740016892553,3.785,2723.4,2722.8,3.2078]
[1740016892748,0.73454,2723.0,2722.8,3.2078]
[1740016893754,0.73454,2723.0,2722.8,3.50077771]
[1740016894051,3.785,2723.4,2722.8,3.50077771]
[1740016894253,3.785,2723.4,2723.1,0.7345]
[1740016894550,3.785,2723.4,2723.1,3.1495]
[1740016894753,3.785,2723.4,2723.2,0.533]
[1740016895147,0.5772,2723.4,2723.2,0.533]
[1740016895549,0.5772,2723.4,2723.2,1.26748]
[1740016895949,0.5772,2723.4,2723.2,0.533]
[1740016896252,0.5772,2723.4,2723.2,1.26748]
[1740016896457,0.5772,2723.4,2723.2,0.533]
[1740016896655,0.5772,2723.4,2723.1,2.415]
[1740016896855,1.89285,2723.4,2723.1,2.415]
[1740016897052,1.1584,2723.4,2723.1,2.415]
[1740016897258,0.73448,2723.2,2723.1,5.6228]
[1740016897558,0.73448,2723.2,2723.1,3.2078]
[1740016898152,0.73447,2723.3,2723.1,3.2078]
[1740016898355,1.1584,2723.4,2723.1,3.9423]
[1740016899161,0.5772,2723.4,2723.2,0.73447]
[1740016900057,0.5772,2723.4,2723.1,3.2078]
[1740016900359,0.5772,2723.4,2723.2,3.15148]
[1740016900757,0.5772,2723.4,2723.2,2.417]
[1740016900956,0.5772,2723.4,2723.3,0.73446]
[1740016902563,0.5772,2723.4,2723.2,3.15147]
[1740016902857,0.5772,2723.4,2723.2,2.417]
[1740016903062,0.5772,2723.4,2723.3,0.73446]
[1740016903360,0.5367,2723.5,2723.4,0.73443]
[1740016903562,0.5367,2723.5,2723.3,0.73443]
[1740016903762,0.5364,2723.6,2723.4,0.73442]
[1740016904358,3.2078,2723.8,2723.2,2.417]
[1740016904665,4.3427,2723.8,2723.4,0.73441]
[1740016904859,5.07703,2723.8,2723.4,0.73441]
[1740016905059,5.07703,2723.8,2723.4,41.53441]
[1740016905362,5.07703,2723.8,2723.4,40.8]
[1740016905852,4.3427,2723.8,2723.2,2.975]
[1740016906054,4.3427,2723.8,2723.3,2.412]
[1740016906055,0.73436,2723.7,2723.3,2.412]
[1740016906661,0.73439,2723.6,2723.3,2.412]
[1740016907256,4.3427,2723.8,2723.3,2.412]
[1740016907462,4.3427,2723.8,2723.2,2.975]
[1740016907657,0.73446,2723.3,2723.2,5.386]
[1740016908258,3.2078,2723.3,2722.5,3.2078]
[1740016908462,0.5774,2723.2,2722.5,3.49949812]
[1740016908667,0.73457,2722.9,2722.5,3.49949812]
[1740016910159,0.73457,2722.9,2722.5,5.91149812]
[1740016910357,0.7346,2722.8,2722.5,5.91149812]
[1740016910562,0.5774,2723.2,2722.5,5.91149812]
[1740016910762,0.73459,2722.9,2722.5,5.91149812]
[1740016911358,0.5689,2722.8,2722.5,5.91149812]
[1740016913372,1.3035,2722.8,2722.5,5.6198]
[1740016914074,0.5689,2722.8,2722.5,5.91929439]
[1740016914367,0.5689,2722.8,2722.5,6.65395439]
[1740016914572,1.86073,2723.1,2722.5,6.65395439]
[1740016914876,0.73455,2723.0,2722.5,6.65395439]
[1740016915370,1.1262,2723.1,2722.5,5.91929439]
[1740016915771,0.73458,2722.9,2722.5,5.91929439]
[1740016915974,1.1262,2723.1,2722.5,6.65395439]
[1740016915975,0.73456,2723.0,2722.5,6.65395439]
[1740016916570,0.73457,2722.9,2722.5,6.65395439]
[1740016916772,0.73455,2723.0,2722.6,0.73463]
[1740016917075,0.73458,2722.9,2722.5,6.65395439]
[1740016917474,0.73454,2723.0,2722.8,3.2078]
[1740016917865,1.1262,2723.1,2722.8,3.2078]
[1740016918071,0.73454,2723.0,2722.8,3.2078]
[1740016918279,0.73456,2722.9,2722.8,3.2078]
[1740016918776,1.1262,2723.1,2722.5,5.91929439]
[1740016919177,0.73461,2722.8,2722.5,5.91929439]
[1740016919376,1.1262,2723.1,2722.5,5.91929439]
[1740016919571,0.73461,2722.8,2722.5,5.91929439]
[1740016920679,1.1262,2723.1,2722.5,5.91929439]
[1740016920879,0.5386,2722.7,2722.5,5.91929439]
[1740016921881,0.73456,2723.0,2722.5,5.91929439]
[1740016922079,1.28858,2722.9,2722.5,5.91929439]
[1740016922379,0.554,2722.9,2722.5,5.91929439]
[1740016922581,1.28857,2722.9,2722.6,0.5627]
[1740016922780,0.554,2722.9,2722.6,0.5627]
[1740016922981,1.1262,2723.1,2722.8,0.73459]
[1740016923181,1.1262,2723.1,2722.7,0.7346]
[1740016923582,1.86071,2723.1,2722.7,0.7346]
[1740016924670,1.86071,2723.1,2722.7,3.9424]
[1740016925380,1.1262,2723.1,2722.7,3.2078]
[1740016925576,1.1262,2723.1,2722.8,1.31118]
[1740016926480,1.1262,2723.1,2722.7,3.2078]
[1740016926881,0.73459,2722.8,2722.7,3.2078]
[1740016930679,0.73455,2723.0,2722.7,3.2078]
[1740016930878,0.73458,2722.9,2722.7,3.2078]
[1740016931381,1.1262,2723.1,2722.7,3.2078]
[1740016931583,0.73459,2722.8,2722.7,3.2078]
[1740016931783,0.73459,2722.8,2722.5,2.69249439]
[1740016932681,1.1262,2723.1,2722.5,2.69249439]
[1740016932881,0.73454,2723.0,2722.5,3.42714439]
[1740016933573,0.73454,2723.0,2722.6,0.73464]
[1740016933986,0.73454,2723.0,2722.7,0.5777]
[1740016934689,1.1262,2723.1,2722.7,0.5777]
[1740016935284,0.73455,2723.0,2722.7,0.5777]
[1740016935685,1.1262,2723.1,2722.5,2.69049439]
[1740016935881,0.7346,2722.8,2722.5,2.69049439]
[1740016936079,0.7346,2722.8,2722.5,0.29949439]
[1740016936384,0.7346,2722.8,2722.4,6.86969]
[1740016936586,0.7346,2722.8,2722.4,6.135]
[1740016936787,0.7346,2722.8,2722.4,6.8697]
[1740016937188,0.7346,2722.8,2722.4,6.135]
[1740016937390,1.90813,2722.7,2722.4,3.743]
[1740016937587,1.90813,2722.7,2722.4,6.133]
[1740016937787,1.90813,2722.7,2722.4,6.42748257]
[1740016938191,1.1735,2722.7,2722.4,7.16218257]
[1740016938384,0.5837,2722.7,2722.4,6.42748257]
[1740016938983,0.5837,2722.7,2722.4,7.16217257]
[1740016939493,0.5837,2722.7,2722.4,6.42748257]
[1740016940886,0.5837,2722.7,2722.4,7.16217257]
[1740016941086,0.5366,2723.1,2722.7,0.73461]
[1740016941288,0.5366,2723.1,2722.4,6.42748257]
[1740016941495,0.73458,2722.9,2722.4,7.16217257]
[1740016941886,0.5867,2722.8,2722.4,6.42748257]
[1740016942087,0.5867,2722.8,2722.5,0.73467]
[1740016942287,0.5867,2722.8,2722.4,6.42748257]
[1740016942591,0.5867,2722.8,2722.4,7.16216257]
[1740016943191,0.5867,2722.8,2722.6,0.73463]
[1740016943390,0.5366,2723.1,2722.4,6.42748257]
[1740016943689,0.5366,2723.1,2722.8,0.73458]
[1740016943889,1.1366,2723.2,2722.9,0.73455]
[1740016944089,1.1366,2723.2,2722.9,2.45915]
[1740016944285,0.538,2723.4,2723.1,3.2078]
[1740016944489,0.5867,2723.6,2723.2,0.73447]
[1740016944792,0.5867,2723.6,2723.1,3.2078]
[1740016944793,1.1247,2723.6,2723.1,3.94229]
[1740016945195,1.1247,2723.6,2723.1,3.2078]
[1740016945394,1.85909,2723.6,2723.1,3.9423]
[1740016945591,1.1247,2723.6,2723.1,3.2078]
[1740016945798,0.73442,2723.5,2723.1,3.2078]
[1740016945996,0.5505,2723.4,2723.1,3.94231]
[1740016946705,0.5505,2723.4,2723.1,3.2078]
[1740016949503,1.28494,2723.4,2723.1,3.2078]
[1740016949803,0.73448,2723.2,2723.1,3.2078]
[1740016950001,0.73455,2723.0,2722.6,5.5958]
[1740016950202,1.1269,2722.9,2722.6,5.5958]
[1740016951307,1.86147,2722.9,2722.6,5.5958]
[1740016951807,1.1269,2722.9,2722.6,5.5958]
[1740016952803,1.86146,2722.9,2722.6,3.2078]
[1740016953113,0.7346,2722.8,2722.6,3.2078]
[1740016955213,1.1269,2722.9,2722.6,3.2078]
[1740016955411,1.86148,2722.9,2722.6,3.2078]
[1740016955707,1.1269,2722.9,2722.6,3.2078]
[1740016956016,0.73459,2722.8,2722.6,3.2078]
[1740016956307,0.73462,2722.7,2722.6,3.2078]
[1740016956526,0.73461,2722.8,2722.6,3.2078]
[1740016957709,0.73462,2722.7,2722.6,3.2078]
[1740016958013,0.7347,2722.4,2722.2,5.72e-06]
[1740016958209,1.1254,2722.3,2722.2,5.72e-06]
[1740016958513,1.714,2722.3,2722.2,5.72e-06]
[1740016960909,3.2078,2722.7,2722.2,5.72e-06]
[1740016961106,0.73458,2722.9,2722.4,0.73468]
[1740016961308,0.73458,2722.9,2722.5,1.6871]
[1740016961517,0.7346,2722.8,2722.5,1.6871]
[1740016961910,1.6628,2723.0,2722.5,1.6871]
[1740016962117,0.73462,2722.7,2722.5,1.6871]
[1740016962518,0.73465,2722.6,2722.5,1.6871]
[1740016963013,0.73463,2722.7,2722.5,1.6871]
[1740016964510,1.6628,2723.0,2722.3,6.32852]
[1740016964717,0.73465,2722.6,2722.3,6.32852]
[1740016965114,0.5783,2722.5,2722.3,6.32852]
[1740016966211,0.5783,2722.5,2722.3,5.5938]
[1740016966719,1.31297,2722.5,2722.3,5.5938]
[1740016967219,1.31298,2722.5,2722.3,5.5938]
[1740016967411,0.5783,2722.5,2722.3,5.5938]
[1740016967714,0.5783,2722.5,2722.3,3.2078]
[1740016967915,1.0779,2722.4,2722.2,5.72e-06]
[1740016968518,0.73473,2722.3,2722.2,5.72e-06]
[1740016983121,6.73473,2722.3,2722.2,5.72e-06]
[1740016983827,0.73473,2722.3,2722.2,5.72e-06]
[1740016986231,3.69473,2722.3,2722.2,5.72e-06]
[1740016987424,9.69473,2722.3,2722.2,5.72e-06]
[1740016987830,3.69473,2722.3,2722.2,5.72e-06]
[1740016988127,9.69473,2722.3,2722.2,5.72e-06]
[1740016988326,6.73473,2722.3,2722.2,5.72e-06]
[1740016988726,6.79370206,2722.3,2722.2,5.72e-06]
[1740016988929,6.79370104,2722.3,2722.2,5.72e-06]
[1740016998430,0.79370104,2722.3,2722.2,5.72e-06]
[1740016998638,3.10873,2722.3,2722.2,5.72e-06]
[1740017000831,0.73473,2722.3,2722.2,5.72e-06]
[1740017004336,3.12073,2722.3,2722.2,5.72e-06]
[1740017005540,3.17977865,2722.3,2722.2,5.72e-06]
[1740017006043,3.12073,2722.3,2722.2,5.72e-06]
[1740017006845,6.08073,2722.3,2722.2,5.72e-06]
[1740017012248,3.69473,2722.3,2722.2,5.72e-06]
[1740017013039,0.73473,2722.3,2722.2,5.72e-06]
[1740017024747,3.69473,2722.3,2722.2,5.72e-06]
[1740017029246,3.75373741,2722.3,2722.2,5.72e-06]
[1740017029657,9.75373741,2722.3,2722.2,5.72e-06]
[1740017033646,10.90573741,2722.3,2722.2,5.72e-06]
[1740017034445,10.9057184,2722.3,2722.2,5.72e-06]
[1740017035852,10.90571718,2722.3,2722.2,5.72e-06]
[1740017037451,10.84673,2722.3,2722.2,5.72e-06]
[1740017037651,10.90572023,2722.3,2722.2,5.72e-06]
[1740017039558,6.79372023,2722.3,2722.2,5.72e-06]
[1740017040953,0.79372023,2722.3,2722.2,5.72e-06]
[1740017042158,0.79369052,2722.3,2722.2,5.72e-06]
[1740017043863,0.79368945,2722.3,2722.2,5.72e-06]
[1740017044157,0.73473,2722.3,2722.2,5.72e-06]
[1740017044361,3.2078,2722.5,2722.2,5.72e-06]
[1740017044760,3.2078,2722.8,2722.2,3.20780572]
[1740017045060,0.73465,2722.6,2722.2,3.20780572]
[1740017045259,3.2078,2722.8,2722.2,9.20780572]
[1740017045456,0.73466,2722.6,2722.2,3.20780572]
[1740017045655,3.2078,2722.8,2722.2,3.20780572]
[1740017045959,0.73473,2722.3,2722.2,3.20780572]
[1740017046361,0.73473,2722.3,2722.2,9.20780572]
[1740017046565,0.73473,2722.3,2722.2,3.20780572]
[1740017052854,0.73473,2722.3,2722.2,5.72e-06]
[1740017055558,3.94253,2722.3,2722.2,5.72e-06]
[1740017055963,4.00150411,2722.3,2722.2,5.72e-06]
[1740017056167,3.94253,2722.3,2722.2,5.72e-06]
[1740017058772,0.73473,2722.3,2722.2,5.72e-06]
[1740017059470,3.11073,2722.3,2722.2,5.72e-06]
[1740017060067,6.31853,2722.3,2722.2,5.72e-06]
[1740017064274,6.37750778,2722.3,2722.2,5.72e-06]
[1740017064480,6.37751052,2722.3,2722.2,5.72e-06]
[1740017066088,6.31853,2722.3,2722.2,5.72e-06]
[1740017066283,3.94253,2722.3,2722.2,5.72e-06]
[1740017066477,6.32953,2722.3,2722.2,5.72e-06]
[1740017066884,6.32853,2722.3,2722.2,5.72e-06]
[1740017067579,3.94253,2722.3,2722.2,5.72e-06]
[1740017067877,6.32753,2722.3,2722.2,5.72e-06]
[1740017069483,3.94253,2722.3,2722.2,5.72e-06]
[1740017069880,6.32753,2722.3,2722.2,5.72e-06]
[1740017070287,3.94253,2722.3,2722.2,5.72e-06]
[1740017070485,0.73473,2722.3,2722.2,5.72e-06]
[1740017072285,1.30511,2722.4,2722.2,5.72e-06]
[1740017072491,0.5704,2722.4,2722.2,5.72e-06]
[1740017072891,0.73473,2722.3,2722.2,5.72e-06]
[1740017076695,0.73473,2722.3,2722.2,3.20780572]
[1740017077694,0.5582,2722.6,2722.2,3.20780572]
[1740017077998,0.73473,2722.3,2722.2,3.20780572]
[1740017079085,0.73472,2722.4,2722.2,3.20780572]
[1740017079294,0.7347,2722.5,2722.2,3.94254572]
[1740017079595,0.7347,2722.4,2722.2,3.94254572]
[1740017079793,0.73466,2722.6,2722.3,0.73471]
[1740017080299,3.5394,2722.9,2722.3,0.73471]
[1740017080497,0.73468,2722.5,2722.3,1.03265307]
[1740017080694,3.5394,2722.9,2722.3,1.03265307]
[1740017080998,0.73467,2722.5,2722.3,1.03265307]
[1740017081200,0.73467,2722.5,2722.3,0.29794307]
[1740017081497,0.73467,2722.5,2722.3,0.73472]
[1740017081897,0.73467,2722.5,2722.2,3.94253572]
[1740017082095,0.73467,2722.5,2722.3,0.73473]
[1740017082599,3.5394,2722.9,2722.2,3.20780572]
[1740017082800,3.5394,2722.9,2722.2,3.94253572]
[1740017083001,0.7347,2722.4,2722.2,3.94253572]
[1740017083498,0.7347,2722.4,2722.2,9.94253572]
[1740017083900,0.73473,2722.3,2722.2,9.50413575]
[1740017084096,0.73471,2722.4,2722.2,3.50413575]
[1740017084701,0.73472,2722.4,2722.2,3.50413575]
[1740017085001,0.5529,2722.7,2722.2,3.50413575]
[1740017085201,0.73472,2722.4,2722.2,3.50413575]
[1740017086305,0.73472,2722.4,2722.2,4.23888575]
[1740017086504,0.5529,2722.7,2722.2,3.50413575]
[1740017086802,0.73472,2722.4,2722.2,3.50413575]
[1740017087394,0.5529,2722.7,2722.2,3.50413575]
[1740017087594,0.73471,2722.4,2722.2,4.23888575]
[1740017088196,0.73471,2722.4,2722.2,10.23888575]
[1740017088402,0.73472,2722.4,2722.2,9.50413575]
[1740017088599,0.73472,2722.4,2722.2,3.50413575]
[1740017089299,0.5529,2722.7,2722.2,3.50413575]
[1740017089605,0.73473,2722.3,2722.2,3.50413575]
[1740017089996,0.73473,2722.3,2722.2,3.20780572]
[1740017098604,3.2078,2723.5,2722.2,11.91500572]
[1740017098906,1.1084,2723.3,2722.8,3.2078]
[1740017099407,0.73456,2722.9,2722.8,3.2078]
[1740017099610,0.73453,2723.1,2722.8,3.2078]
[1740017099808,1.1084,2723.3,2722.8,3.2078]
[1740017100009,0.73456,2722.9,2722.8,3.2078]
[1740017105119,3.5489,2723.2,2722.8,3.2078]
[1740017105415,0.73452,2723.1,2722.8,3.2078]
[1740017106015,3.5489,2723.2,2722.8,3.2078]